Cogmind - Beta 12 @@@ ROGUE MODE // 2023.10.22 @ 14:29:05 Player: monistgf Result: Self-destructed Performance ------------- Evolutions (9) 4500 Regions Visited (22) 4400 Robots Destroyed (240) 1200 Value Destroyed (16598) 16598 Prototype IDs (10) 200 Alien Tech Used (0) 0 Bonus (13474) 13474 TOTAL SCORE: 40372 Bonus ------- High Alert Combat Kills 2653 Follower Combat Kills 5761 Entered Garrisons 1400 Used RIF Installer 4000 Friendly Fire -340 Cogmind --------- Core Integrity 743/1600 Matter 265/300 Energy 9/100 System Corruption 38% Temperature Cool (0) Movement Hovering (510) Ox7 Location -1/Access Parts ------- > --- POWER (1) -------- (None) > --- PROPULSION (5) --- Medium Treads Centrium Leg Improved Antigrav System > --- UTILITY (16) ----- Advanced Heat Sink Huge Storage Unit Advanced Signal Interpreter Improved Melee Analysis Suite Advanced Melee Analysis Suite Advanced Target Analyzer Advanced Target Analyzer Advanced Target Analyzer Advanced Target Analyzer Advanced Weapon Cycler Relay Coupler [NC] (22) Relay Coupler [Duelist] (26) Relay Coupler [Sentry] (28) Relay Coupler [Specialist] (11) > --- WEAPON (3) ------- Enhanced Quantum Rifle > --- INVENTORY (25) --- Improved Antigrav System Improved Antigrav System Improved Antigrav System Improved Antigrav System Huge Storage Unit Long-range Sensor Array Nanoactuators Advanced Transmission Jammer Advanced ECM Suite Advanced Cloaking Device Antimissile System Relay Coupler [NC] (41) Relay Coupler [NC] (40) Relay Coupler [NC] (41) Relay Coupler [Cutter] (39) Relay Coupler [Proto] (15) Relay Coupler [Proto] (15) Relay Coupler [Proto] (15) Enhanced Nova Cannon Advanced Remote Datajack Advanced Remote Datajack Peak State ------------ > --- POWER ------------ Quantum Reactor > --- PROPULSION ------- Biometal Leg Biometal Leg Biometal Leg Centrium Leg Centrium Leg > --- UTILITY ---------- Advanced Heat Sink Advanced Heat Sink Huge Storage Unit Long-range Sensor Array Advanced Signal Interpreter Improved Melee Analysis Suite Improved Melee Analysis Suite Improved Melee Analysis Suite Advanced Melee Analysis Suite Advanced Melee Analysis Suite Nanoactuators Nanoactuators Advanced Force Field Relay Coupler [NC] Relay Coupler [Duelist] Relay Coupler [Sentry] > --- WEAPON ----------- Helical Railgun Carbide Saw Enhanced Force Lance > --- INVENTORY -------- Quantum Reactor Biometal Medium Treads Myomer Leg Myomer Leg Improved Antigrav System Huge Storage Unit Advanced ECM Suite Improved Core Shielding Point Defense System Antimissile System Relay Coupler [NC] Relay Coupler [NC] Relay Coupler [NC] Relay Coupler [Cutter] Relay Coupler [Specialist] Relay Coupler [Proto] Relay Coupler [Proto] Relay Coupler [Proto] Enhanced Coil Gun Railgun Advanced Remote Datajack Advanced Remote Datajack Plasma Sword [Rating: 161] Favorites ----------- Power Light Angular Momentum Engine Engine Light Angular Momentum Engine Power Core Micro Nuclear Core Reactor Light Quantum Reactor Propulsion Centrium Leg Treads Medium Treads Leg Centrium Leg Wheel Armored Wheel Hover Unit Gravmag Array Flight Unit Cesium-ion Thruster Utility Improved Melee Analysis Suite Device Nanoactuators Storage Huge Storage Unit Processor Improved Melee Analysis Suite Hackware Relay Coupler [Swarmer] Protection Improved Medium Armor Plating Weapon Plasma Sword Energy Gun Beamcaster Energy Cannon Enhanced Nova Cannon Ballistic Gun Heavy Assault Rifle Ballistic Cannon Advanced Assault Cannon Launcher Heavy Rocket Launcher Special Weapon Remote Datajack Impact Weapon Power Maul Slashing Weapon Plasma Sword Piercing Weapon Enhanced Force Lance Build | -11 -10 -9 -8 -8 -8 -7 -7 -6 -5 -5 -5 -5 -4 -4 -4 -4 -3 -3 -2 -1 -1 -1 ------- Run | Jun Mat Mat Mat Gar Mat Fac Gar Fac Fac Was Fac Gar Fac Gar Fac Gar Res Gar Res Acc Gar Acc Slots Evolved 18 | . . 2 2 . . 2 . 2 2 . . . 2 . . . 2 . 2 2 . . Power . | . . . . . . . . . . . . . . . . . . . . . . . Propulsion 3 | . . . 1 . . 2 . . . . . . . . . . . . . . . . Utility 14 | . . 1 1 . . . . 2 2 . . . 2 . . . 2 . 2 2 . . Weapon 1 | . . 1 . . . . . . . . . . . . . . . . . . . . Parts Attached 552 | . 27 18 16 8 22 30 38 100 5 4 7 23 2 21 8 26 4 37 2 6 44 104 Power 38 | . 3 3 3 1 1 2 2 5 . 2 . 1 . 1 . 1 . 2 . . 5 6 Engine 15 | . 3 3 1 1 1 1 2 2 . 1 . . . . . . . . . . . . Core 6 | . . . 2 . . 1 . 3 . . . . . . . . . . . . . . Reactor 17 | . . . . . . . . . . 1 . 1 . 1 . 1 . 2 . . 5 6 Propulsion 152 | . 8 5 1 5 12 13 26 31 2 . 3 9 . 1 1 . . 6 . 1 4 24 Treads 10 | . . . . . 4 2 1 1 . . . . . . . . . . . . . 2 Leg 97 | . 8 3 . 2 6 10 15 16 2 . 3 9 . 1 1 . . 6 . 1 4 10 Wheel 25 | . . 2 1 3 2 . 10 7 . . . . . . . . . . . . . . Hover 18 | . . . . . . 1 . 5 . . . . . . . . . . . . . 12 Flight 2 | . . . . . . . . 2 . . . . . . . . . . . . . . Utility 184 | . 8 4 9 1 4 10 4 31 2 1 2 7 1 9 2 12 2 8 2 3 10 52 Device 75 | . 4 2 2 . . 3 1 19 1 . . . 1 . 1 1 2 3 2 . 1 32 Storage 9 | . . 1 . . . 3 2 1 . . . . . 1 . . . . . 1 . . Processor 24 | . . . 4 1 . 3 . 5 . . . . . . . . . . . . 1 10 Hackware 36 | . . . . . . . 1 3 . . 1 4 . 7 1 5 . 4 . 1 5 4 Protection 40 | . 4 1 3 . 4 1 . 3 1 1 1 3 . 1 . 6 . 1 . 1 3 6 Artifact . | . . . . . . . . . . . . . . . . . . . . . . . Weapon 178 | . 8 6 3 1 5 5 6 33 1 1 2 6 1 10 5 13 2 21 . 2 25 22 Energy Gun 5 | . 1 1 . . . . . 1 . . . . . . . . . . . . . 2 Energy Cannon 2 | . . . . . . . . . . . . . . . . . . . . . . 2 Ballistic Gun 40 | . 7 5 . . 2 1 . 17 . . . . . . . . . 2 . . 1 5 Ballistic Cannon 2 | . . . . . . . 1 1 . . . . . . . . . . . . . . Launcher 2 | . . . . . . . 1 . . . . . . . . . . 1 . . . . Special Weapon 52 | . . . . . . . . 6 . . 1 3 1 4 4 7 1 9 . 1 10 5 Impact Weapon 10 | . . . . . . 4 3 3 . . . . . . . . . . . . . . Slashing Weapon 27 | . . . 3 1 3 . 1 5 1 . . . . 1 . . 1 2 . . 5 4 Piercing Weapon 38 | . . . . . . . . . . 1 1 3 . 5 1 6 . 7 . 1 9 4 Special Melee Weapon . | . . . . . . . . . . . . . . . . . . . . . . . Unidentified Prototypes 7 | . . . . . . 1 . 1 1 . . . . 1 . . . 3 . . . . Parts Lost 147 | . 2 3 1 6 11 5 14 32 . . . . . 1 . 3 . 5 . 3 14 47 Power 14 | . . . . . 1 1 1 4 . . . . . . . 1 . . . . 3 3 Propulsion 56 | . . 1 . 4 5 1 12 14 . . . . . . . . . . . 1 4 14 Utility 46 | . 1 . 1 1 3 2 . 5 . . . . . 1 . 1 . 4 . 2 6 19 Weapon 31 | . 1 2 . 1 2 1 1 9 . . . . . . . 1 . 1 . . 1 11 Highest Loss Streak 16 | . 1 3 1 3 5 1 5 8 . . . . . 1 . 1 . 3 . 3 4 16 To Critical Strikes 4 | . . . . . . . . . . . . . . . . . . . . . 1 3 Average Slot Usage (%) 92 | . 92 94 96 89 84 96 88 86 91 97 99 96 92 98 99 99 100 96 95 90 91 92 Engine 2 | . 13 11 5 6 9 3 2 3 . 1 . . . . . . . . . . . . Core 1 | . . . 3 2 . 3 4 1 5 1 . . . . . . . . . . . . Reactor 2 | . . . . . . . . . . 2 5 5 5 5 5 4 4 4 4 4 3 3 Treads 1 | . . . . . 2 6 . 2 . . . . . . . . . . . . . . Leg 21 | . 26 19 . 6 19 24 27 14 29 29 28 28 26 26 25 26 23 23 21 20 19 16 Wheel 2 | . . 2 27 20 5 6 4 3 . . . . . . . . . . . . . . Hover 1 | . . . . . . . . 4 . . . . . . . . . . . . . 1 Device 6 | . 5 3 3 . . 4 . 6 10 11 11 . 3 1 5 1 14 12 17 13 7 15 Storage 6 | . 14 11 9 9 9 7 7 6 5 5 5 5 5 5 5 5 4 4 4 5 4 4 Processor 15 | . . . 12 24 13 12 15 20 17 17 17 17 15 15 15 15 14 14 13 12 13 21 Hackware 9 | . . . . . . . 2 1 . . 4 7 10 19 26 24 19 19 17 20 23 16 Protection 3 | . 4 13 11 2 7 1 . . 3 8 5 10 10 8 . 5 4 2 4 3 6 1 Ballistic Gun 3 | . 24 29 18 . 1 . . 8 . . . . . . . . . . . . . 1 Impact Weapon 3 | . . . . . . 7 16 3 . . . . . . . . . . . . . . Slashing Weapon 7 | . . . 5 18 18 13 5 2 17 12 11 11 10 10 10 10 9 9 8 8 8 5 Piercing Weapon 1 | . . . . . . . . . . 3 4 4 3 2 1 2 4 2 4 3 3 2 Naked Turns . | . . . . . . . . . . . . . . . . . . . . . . . Heaviest Build 223 | 14 16 38 38 36 44 95 99 113 61 82 82 83 84 123 110 122 124 141 143 223 139 155 Greatest Support 150 | 20 20 24 36 36 45 94 94 96 88 88 93 150 150 150 150 150 150 150 150 150 150 146 Greatest Overweight (x) 30 | . 3 3 1 1 3 1 4 30 . . 1 1 . . . . . . . 1 1 4 Average Overweight (x) . | . . . . . . . . 1 . . . . . . . . . . . . . . Largest Inventory Capacity 25 | . 8 15 15 15 15 25 25 25 20 20 20 20 20 25 25 25 25 25 25 25 25 25 Average Capacity 21 | . 8 10 15 15 15 17 22 23 20 20 20 20 20 23 25 25 25 25 25 25 25 25 Most Carried 25 | . 8 14 15 15 15 25 25 25 20 20 20 20 20 25 25 25 24 25 25 25 25 25 Average Carried 20 | . 7 8 13 13 14 17 21 22 19 19 20 19 19 23 24 24 23 24 23 23 24 23 Final Capacity 25 | 8 8 15 15 15 15 25 25 20 20 20 20 20 20 25 25 25 25 25 25 25 25 25 Final Carried 25 | 6 8 13 15 14 14 25 25 20 20 20 20 20 20 25 24 25 24 25 23 25 22 21 Class Distribution -------------------- 39% | Botlord-Mutant 16% | Mutant 13% | Bothacker-Mutant 7% | Scavenger-Mutant 7% | Bothacker-Skirmisher 4% | Bothacker-Assassin 3% | Scavenger-Gladiator Dominant Class ---------------- Mutant | -10/Materials Tank | -9/Materials Scavenger-Skirmisher | -8/Materials Scavenger-Gladiator | -8/Garrison Scavenger-Gladiator | -8/Materials Mutant | -7/Factory Mutant | -7/Garrison Bothacker-Mutant | -6/Factory Bothacker-Assassin | -5/Factory Bothacker-Assassin | -5/Waste Bothacker-Assassin | -5/Factory Bothacker-Mutant | -5/Garrison Botlord-Mutant | -4/Factory Botlord-Mutant | -4/Garrison Botlord-Mutant | -4/Factory Botlord-Mutant | -4/Garrison Botlord-Mutant | -3/Research Botlord-Mutant | -3/Garrison Botlord-Assassin | -2/Research Botlord-Mutant | -1/Access Botlord-Mutant | -1/Garrison Botlord-Mutant | -1/Access Resources | -11 -10 -9 -8 -8 -8 -7 -7 -6 -5 -5 -5 -5 -4 -4 -4 -4 -3 -3 -2 -1 -1 -1 ----------- Run | Jun Mat Mat Mat Gar Mat Fac Gar Fac Fac Was Fac Gar Fac Gar Fac Gar Res Gar Res Acc Gar Acc Matter Collected 8447 | 200 263 450 436 70 161 307 353 1915 22 68 59 282 122 400 100 375 90 545 . 102 660 1467 Remotely . | . . . . . . . . . . . . . . . . . . . . . . . Salvage Created 14656 | . 326 514 565 249 643 656 2085 3059 148 . . 375 . 183 . 822 146 672 . 207 2216 1790 Parts 609 | . 24 34 23 8 40 42 49 113 5 . . 19 . 5 . 26 4 28 . 9 77 103 Haulers Intercepted 2 | . . . . . . . . 2 . . . . . . . . . . . . . . Recyclers Shooed 9 | . . . . . . . . 5 . . . . . . . . . . . . . 4 Parts Field Recycled . | . . . . . . . . . . . . . . . . . . . . . . . Retrieved Matter . | . . . . . . . . . . . . . . . . . . . . . . . Parts Self-Destructed . | . . . . . . . . . . . . . . . . . . . . . . . Prevented . | . . . . . . . . . . . . . . . . . . . . . . . Kills | -11 -10 -9 -8 -8 -8 -7 -7 -6 -5 -5 -5 -5 -4 -4 -4 -4 -3 -3 -2 -1 -1 -1 ------- Run | Jun Mat Mat Mat Gar Mat Fac Gar Fac Fac Was Fac Gar Fac Gar Fac Gar Res Gar Res Acc Gar Acc Combat Hostiles Destroyed 211 | . 8 13 10 5 13 16 26 41 . . . 6 . 3 . 11 2 10 . 3 19 25 Melee 143 | . . . 3 5 13 14 19 13 . . . 6 . 3 . 11 2 10 . 3 19 22 Guns 45 | . 8 13 7 . . . . 15 . . . . . . . . . . . . . 2 Cannons 6 | . . . . . . . . 5 . . . . . . . . . . . . . 1 Classes Destroyed 19 | . 3 1 1 . 3 2 . 3 . . . 2 . 2 . . . . . . . 2 Worker 6 | . . . . . 1 . . 3 . . . . . . . . . . . . . 2 Builder 1 | . . . . . . . . 1 . . . . . . . . . . . . . . Tunneler 1 | . . . . . . . . 1 . . . . . . . . . . . . . . Hauler 2 | . . . . . . . . 2 . . . . . . . . . . . . . . Recycler 8 | . . . . . 1 . . 6 1 . . . . . . . . . . . . . Operator 1 | . . . . . . . . . . . . . . . . . . . . . . 1 Watcher 8 | . 2 . 1 . . 1 . 2 1 . . . . . . . . . . . . 1 Swarmer 33 | . 3 3 . . 3 5 6 5 . . . . . 1 . . . 2 . 1 1 3 Cutter 5 | . . . . . . . . . . . . 1 . . . . . . . . 4 . Grunt 93 | . 5 7 7 3 4 4 18 23 . . . 3 . . . 5 1 2 . . 7 4 Brawler 1 | . . . . . 1 . . . . . . . . . . . . . . . . . Duelist 5 | . . . 2 2 . . . 1 . . . . . . . . . . . . . . Sentry 21 | . . 3 1 . 5 . . 3 . . . . . . . 3 . 3 . . 2 1 Hunter 10 | . . . . . . 1 . . . . . 1 . . . 3 1 1 . 2 1 . Programmer 39 | . . . . . . 6 2 9 . . . . . 1 . . . 2 . . 3 16 Heavy 1 | . . . . . . . . . . . . . . . . . . . . . . 1 Behemoth 2 | . . . . . . . . . . . . 1 . . . . . . . . 1 . Striker 1 | . . . . . . . . . . . . . . 1 . . . . . . . . Surgeon 1 | . . . . . . . . . . . . . . 1 . . . . . . . . Wasp 1 | . . . . . . . . . . . . 1 . . . . . . . . . . Best Kill Streak 9 | . 5 9 3 4 3 3 3 7 2 . . 2 . 1 . 5 2 2 . 2 4 3 Combat Bots Only 9 | . 5 9 3 4 2 3 3 5 . . . 2 . 1 . 5 2 2 . 2 4 3 Max Kills in Single Turn 2 | . 1 2 1 1 1 1 1 2 1 . . 1 . 1 . 1 1 1 . 1 2 1 Gunslinging 1 | . . 1 . . . . . . . . . . . . . . . . . . . . Exploded . | . . . . . . . . . . . . . . . . . . . . . . . Melee 2 | . . . 1 1 1 1 1 1 . . . 1 . 1 . 1 1 1 . 1 2 1 Uniques/NPCs Destroyed . | . . . . . . . . . . . . . . . . . . . . . . . Combat | -11 -10 -9 -8 -8 -8 -7 -7 -6 -5 -5 -5 -5 -4 -4 -4 -4 -3 -3 -2 -1 -1 -1 -------- Run | Jun Mat Mat Mat Gar Mat Fac Gar Fac Fac Was Fac Gar Fac Gar Fac Gar Res Gar Res Acc Gar Acc Damage Taken 27254 | . 447 442 772 668 1489 1032 1985 4493 . . 37 587 58 864 147 1352 13 1604 100 451 3606 7107 Core 3092 | . 76 62 103 98 184 125 318 515 . . . 58 58 90 147 209 . 192 . 24 266 567 Absorbed by Shields 680 | . . . . . . . . . . . . 27 . 47 . . . 55 . . 58 493 Redirected to Shielding 675 | . . 13 23 52 . . . 236 . . . . . . . . . . . . 179 172 Regen/Repaired (Parts) 514 | . . . . . . . . . . 11 26 255 . 98 124 . . . . . . . Core Remaining (%) 69 | 100 69 84 . . 30 . 36 39 . . . 94 . . . 56 . 85 100 . . . Volleys Fired 408 | . 37 23 34 . . . 6 90 . . 1 16 2 39 4 35 . 32 . 2 37 50 Largest 3 | . 2 3 3 . . . 1 3 . . 1 1 1 1 1 1 . 1 . 1 1 3 Hottest 230 | . 60 80 69 . . . 44 106 . . 5 5 5 5 5 5 . 39 . 10 10 230 Shots Fired 711 | . 73 69 102 . . . 6 208 . . 1 16 2 39 4 35 . 32 . 2 37 85 Gun 481 | . 73 69 102 . . . . 172 . . . . . . . . . . . . . 65 Cannon 30 | . . . . . . . 4 22 . . . . . . . . . . . . . 4 Launcher 4 | . . . . . . . 2 . . . . . . . . . . 2 . . . . Special 196 | . . . . . . . . 14 . . 1 16 2 39 4 35 . 30 . 2 37 16 Kinetic 476 | . 63 61 102 . . . 4 194 . . . . . . . . . . . . . 52 Thermal 7 | . . . . . . . . . . . . . . . . . . . . . . 7 Explosive 4 | . . . . . . . 2 . . . . . . . . . . 2 . . . . Electromagnetic 28 | . 10 8 . . . . . . . . . . . . . . . . . . . 10 Robot Hit Streak 21 | . 7 11 9 . . . . 12 . . 9 21 . 8 1 8 . 13 . 15 15 6 Robot Miss Streak 5 | . 3 3 3 . . . . 4 . . . 1 2 3 1 2 . 2 . . 2 5 Penetration Max 1 | . . . . . . . . 1 . . . . . . . . . . . . . 1 Secondary Targets 8 | . 2 4 . . . . . 2 . . . . . . . . . . . . . . Max Gunslinging Chain 1 | . 1 1 . . . . . 1 . . . . . . . . . . . . . . Shots Hit Robots 1135 | . 45 47 71 16 45 37 97 228 2 . 1 34 . 41 3 63 3 58 . 17 148 179 Core Hits 371 | . 18 18 21 5 15 16 24 96 2 . . 8 . 5 . 15 2 24 . 6 43 53 Critical Kills 5 | . . 2 . . . 1 1 1 . . . . . . . . . . . . . . Critical Parts Destroyed 26 | . . . . . . 1 14 11 . . . . . . . . . . . . . . Critical Strikes 122 | . . 2 1 3 5 4 17 23 . . . 3 . 2 . 6 . 8 . 3 18 27 Destroy 4 | . . 2 . . . . . 2 . . . . . . . . . . . . . . Corrupt 1 | . . . . . . . . . . . . . . . . . . . . . . 1 Smash 27 | . . . . . . 2 15 10 . . . . . . . . . . . . . . Sever 56 | . . . 1 3 5 2 2 11 . . . . . 1 . 4 . 4 . 1 8 14 Impale 34 | . . . . . . . . . . . . 3 . 1 . 2 . 4 . 2 10 12 Melee Attacks 857 | . . . 9 26 60 61 131 103 3 . . 32 . 30 1 50 3 51 . 18 133 146 Impact 150 | . . . . . . 10 92 48 . . . . . . . . . . . . . . Slashing 443 | . . . 9 26 60 51 39 55 3 . . 6 . 12 . 18 . 30 . 6 62 66 Piercing 264 | . . . . . . . . . . . . 26 . 18 1 32 3 21 . 12 71 80 Sneak Attacks 20 | . . . . . 2 1 . 6 1 . . 1 . 1 . 2 . . . . 3 3 Combat Hostiles 7 | . . . . . . 1 . . . . . . . . . 2 . . . . 3 1 Follow-up Attacks 148 | . . . . 5 5 13 22 20 . . . 3 . 4 . 10 . 5 . 5 41 15 Damage Inflicted 39410 | . 566 632 1212 737 2311 1351 5806 6993 135 . . 911 . 687 36 1743 158 1878 . 690 6299 7265 Guns 5920 | . 546 632 973 . . . . 2739 . . . . . . . . . . . . . 1030 Cannons 493 | . . . . . . . . 382 . . . . . . . . . . . . . 111 Explosions 298 | . . . . . . . . . . . . . . . . . . 228 . . . 70 Melee 32643 | . . . 237 737 2292 1351 5806 3872 135 . . 911 . 681 36 1743 158 1650 . 690 6299 6045 Ramming 56 | . 20 . 2 . 19 . . . . . . . . 6 . . . . . . . 9 Kinetic 5916 | . 437 552 973 . . . . 3121 . . . . . . . . . . . . . 833 Thermal 290 | . . . . . . . . . . . . . . . . . . . . . . 290 Explosive 228 | . . . . . . . . . . . . . . . . . . 228 . . . . Electromagnetic 277 | . 109 80 . . . . . . . . . . . . . . . . . . . 88 Impact 6918 | . . . . . . 243 4454 2221 . . . . . . . . . . . . . . Slashing 14126 | . . . 237 737 2292 1108 1352 1651 135 . . 76 . 216 . 443 . 902 . 217 2395 2365 Piercing 11599 | . . . . . . . . . . . . 835 . 465 36 1300 158 748 . 473 3904 3680 Highest Corruption 38 | . . . . 1 5 1 . 5 . . 3 5 . . . . . 3 . . 4 38 Average Corruption 4 | . . . . 1 3 1 . 2 . . 2 4 . . . . . 2 . . 3 9 Corruption Purged 13 | . . . . . . 1 . 5 . . . . . . . . . . . . . 7 Corruption Blocked . | . . . . . . . . . . . . . . . . . . . . . . . Effects 205 | . . . . 1 9 3 . 53 . . 5 26 . . . . . 6 . . 7 95 Message Errors 48 | . . . . . 1 . . 14 . . 3 9 . . . . . 2 . . 2 17 Matter Fused 46 | . . . . . 3 . . 10 . . 2 5 . . . . . 1 . . 2 23 Heat Flow Errors 29 | . . . . . 1 . . 6 . . . 3 . . . . . 1 . . . 18 Energy Discharges 28 | . . . . . 3 . . 7 . . . 2 . . . . . . . . 1 15 Parts Rejected 4 | . . . . . . . . 2 . . . . . . . . . . . . . 2 Parts Fused 2 | . . . . . . . . 1 . . . 1 . . . . . . . . . . Data Loss (minor) 31 | . . . . 1 . 2 . 7 . . . 5 . . . . . 2 . . 2 12 Data Loss (major) 6 | . . . . . . 1 . 2 . . . 1 . . . . . . . . . 2 Misfires 5 | . . . . . . . . 1 . . . . . . . . . . . . . 4 Alerts 4 | . . . . . 1 . . 2 . . . . . . . . . . . . . 1 Misdirections 1 | . . . . . . . . . . . . . . . . . . . . . . 1 Weapon Failures 1 | . . . . . . . . 1 . . . . . . . . . . . . . . Overload Shots . | . . . . . . . . . . . . . . . . . . . . . . . Overflow Damage 3492 | . . . 9 54 78 54 1481 927 . . . 74 . 138 . 70 . 13 . 17 34 543 Projectiles . | . . . . . . . . . . . . . . . . . . . . . . . Explosions . | . . . . . . . . . . . . . . . . . . . . . . . Melee 3492 | . . . 9 54 78 54 1481 927 . . . 74 . 138 . 70 . 13 . 17 34 543 Knockbacks 33 | . . . . . . 2 6 25 . . . . . . . . . . . . . . Impact 26 | . . . . . . 2 6 18 . . . . . . . . . . . . . . Kinetic 4 | . . . . . . . . 4 . . . . . . . . . . . . . . Secondary 3 | . . . . . . . . 3 . . . . . . . . . . . . . . Self-Inflicted Damage 87 | . . . 1 . . . 48 . . . . . . . . . . . . . . 38 Shots 2 | . . . . . . . 1 . . . . . . . . . . . . . . 1 Rammed 1 | . . . 1 . . . . . . . . . . . . . . . . . . . Targets Rammed 12 | . 4 . 1 . 5 . . . . . . . . 1 . . . . . . . 1 Kicked 11 | . 4 . . . 5 . . . . . . . . 1 . . . . . . . 1 Crushed . | . . . . . . . . . . . . . . . . . . . . . . . Highest Temperature 265 | . 90 69 71 15 82 . 12 265 . . . 180 . 1 . 18 . 235 . . . 252 Average Temperature 56 | . 31 28 29 11 31 . 5 67 . . . 82 . 1 . 13 . 112 . . . 83 Received Heat Transfer 5104 | . 216 243 486 342 552 108 753 1373 . . . 76 12 115 . 268 6 187 18 9 166 174 Effects 2 | . . . . . . . . . . . . . . . . . . . . . . 2 Interference 2 | . . . . . . . . . . . . . . . . . . . . . . 2 Siege Activations . | . . . . . . . . . . . . . . . . . . . . . . . Robots Corrupted . | . . . . . . . . . . . . . . . . . . . . . . . Combat Hostiles . | . . . . . . . . . . . . . . . . . . . . . . . Parts Fried 36 | . 2 . . . . 3 18 13 . . . . . . . . . . . . . . Impact Corruptions 72 | . . . . . . 4 36 32 . . . . . . . . . . . . . . Robots Melted . | . . . . . . . . . . . . . . . . . . . . . . . Combat Hostiles . | . . . . . . . . . . . . . . . . . . . . . . . Parts Melted 6 | . . . . . . . . . . . . 1 . . . 2 1 1 . . . 1 Heat Transferred 335 | . . . . . . . . . . . . . . . . . . . . . . 335 Parts Sabotaged 2 | . . . . . . . . 2 . . . . . . . . . . . . . . Parts Stolen . | . . . . . . . . . . . . . . . . . . . . . . . Parts Stripped . | . . . . . . . . . . . . . . . . . . . . . . . Power Chain Reactions 1 | . . . . . . . . . . . . . . . . . . . . . . 1 Missiles Intercepted . | . . . . . . . . . . . . . . . . . . . . . . . Alert | -11 -10 -9 -8 -8 -8 -7 -7 -6 -5 -5 -5 -5 -4 -4 -4 -4 -3 -3 -2 -1 -1 -1 ------- Run | Jun Mat Mat Mat Gar Mat Fac Gar Fac Fac Was Fac Gar Fac Gar Fac Gar Res Gar Res Acc Gar Acc Peak Influence 1626 | . 125 406 389 218 385 252 1556 822 352 185 306 1220 892 1525 1031 1483 979 1626 926 555 808 475 Initial 914 | . . 41 105 25 105 168 156 816 330 123 129 214 640 624 800 721 834 734 914 555 440 424 Average 585 | . 55 212 234 95 269 132 880 552 342 163 230 792 743 1214 850 1206 889 1318 917 528 608 219 Maximum Alert Level 5 | . . 2 1 1 1 1 4 3 1 . 1 4 3 4 3 4 3 5 3 2 3 2 Low Security (%) 22 | . 100 38 41 94 16 81 1 . . 100 36 . . . . . . . . . . 42 Level 1 20 | . . 51 58 5 83 18 16 16 100 . 63 23 . . . . . . . . . 43 Level 2 24 | . . 10 . . . . 20 72 . . . 11 51 4 . . . . . 100 73 13 Level 3 15 | . . . . . . . 25 10 . . . 41 48 27 100 30 100 12 100 . 26 . Level 4 17 | . . . . . . . 36 . . . . 22 . 68 . 69 . 79 . . . . Level 5 . | . . . . . . . . . . . . . . . . . . 7 . . . . High Security . | . . . . . . . . . . . . . . . . . . . . . . . Max Security . | . . . . . . . . . . . . . . . . . . . . . . . Squads Dispatched 56 | . 3 3 1 . 2 8 . 20 . . . . 2 . 4 . 2 . . . . 11 Investigation 6 | . 1 1 . . . 1 . 2 . . . . . . 1 . . . . . . . Extermination 21 | . . . . . . 6 . 8 . . . . . . 1 . . . . . . 6 Reinforcement 17 | . 2 2 1 . 2 1 . 3 . . . . 1 . . . 1 . . . . 4 Assault 7 | . . . . . . . . 5 . . . . . . 1 . . . . . . 1 Garrison 5 | . . . . . . . . 2 . . . . 1 . 1 . 1 . . . . . Intercept . | . . . . . . . . . . . . . . . . . . . . . . . Searches Triggered . | . . . . . . . . . . . . . . . . . . . . . . . Construction Impeded 2 | . . . . . . . . 2 . . . . . . . . . . . . . . Haulers Reinforced 2 | . . . . . . . . . . . . . . . . . 1 . . . . 1 Active Scanning Responses . | . . . . . . . . . . . . . . . . . . . . . . . Cargo Convoy Interrupts 1 | . . . . . . 1 . . . . . . . . . . . . . . . . Alert ID Control Effect 3 | . . . . . . . . . . . . . . . . . . . . . . 3 Stealth | -11 -10 -9 -8 -8 -8 -7 -7 -6 -5 -5 -5 -5 -4 -4 -4 -4 -3 -3 -2 -1 -1 -1 --------- Run | Jun Mat Mat Mat Gar Mat Fac Gar Fac Fac Was Fac Gar Fac Gar Fac Gar Res Gar Res Acc Gar Acc Distress Signals 24 | . 1 3 2 . 3 1 . 5 . . . . 1 . 1 4 . 1 . . . 2 Communications Jammed . | . . . . . . . . . . . . . . . . . . . . . . . Distress Signals . | . . . . . . . . . . . . . . . . . . . . . . . Times Spotted 548 | . 15 20 16 5 27 24 43 86 1 2 3 31 2 48 15 39 4 43 1 10 55 58 Peak Tracking Total 14 | . 5 14 5 5 7 4 4 7 1 2 1 4 2 7 7 9 5 10 1 4 7 5 Tactical Retreats 43 | . 1 . . . 8 1 7 9 . . . . . 2 . 3 . . . 2 3 7 Traps | -11 -10 -9 -8 -8 -8 -7 -7 -6 -5 -5 -5 -5 -4 -4 -4 -4 -3 -3 -2 -1 -1 -1 ------- Run | Jun Mat Mat Mat Gar Mat Fac Gar Fac Fac Was Fac Gar Fac Gar Fac Gar Res Gar Res Acc Gar Acc Traps Triggered 38 | . 6 1 . 3 . 1 2 5 1 . 3 2 . 3 . 3 . 2 . . 4 2 Indirectly . | . . . . . . . . . . . . . . . . . . . . . . . Trap Hack Attempts . | . . . . . . . . . . . . . . . . . . . . . . . Triggered . | . . . . . . . . . . . . . . . . . . . . . . . Disarmed . | . . . . . . . . . . . . . . . . . . . . . . . Reprogrammed . | . . . . . . . . . . . . . . . . . . . . . . . Reused . | . . . . . . . . . . . . . . . . . . . . . . . Traps Extracted . | . . . . . . . . . . . . . . . . . . . . . . . Installed . | . . . . . . . . . . . . . . . . . . . . . . . Triggered 4 | . . . . . . 4 . . . . . . . . . . . . . . . . Machines | -11 -10 -9 -8 -8 -8 -7 -7 -6 -5 -5 -5 -5 -4 -4 -4 -4 -3 -3 -2 -1 -1 -1 ---------- Run | Jun Mat Mat Mat Gar Mat Fac Gar Fac Fac Was Fac Gar Fac Gar Fac Gar Res Gar Res Acc Gar Acc Machines Disabled 39 | . . . . 1 . . 8 . . . . 4 4 7 1 4 . 7 . . 2 1 Max in Single Turn 1 | . . . . 1 . . 1 . . . . 1 . 1 . 1 . 1 . . 1 1 Garrison Relay 23 | . . . . 1 . . 5 . . . . 4 . 4 . 3 . 4 . . 2 . Phase Generator 1 | . . . . . . . 1 . . . . . . . . . . . . . . . Machines Repaired . | . . . . . . . . . . . . . . . . . . . . . . . Machines Sabotaged . | . . . . . . . . . . . . . . . . . . . . . . . Overloaded Fab Kills . | . . . . . . . . . . . . . . . . . . . . . . . Hacking | -11 -10 -9 -8 -8 -8 -7 -7 -6 -5 -5 -5 -5 -4 -4 -4 -4 -3 -3 -2 -1 -1 -1 --------- Run | Jun Mat Mat Mat Gar Mat Fac Gar Fac Fac Was Fac Gar Fac Gar Fac Gar Res Gar Res Acc Gar Acc Machines Accessed 48 | . . 3 3 3 5 4 3 8 1 . 2 2 1 2 3 1 1 3 . 2 1 . Terminals 35 | . . 3 2 3 5 2 3 5 1 . 1 2 . 2 . 1 . 3 . 1 1 . Fabricators 2 | . . . . . . . . 2 . . . . . . . . . . . . . . Repair Stations 2 | . . . . . . 1 . . . . . . . . 1 . . . . . . . Recycling Units . | . . . . . . . . . . . . . . . . . . . . . . . Scanalyzers 2 | . . . . . . . . 1 . . . . . . 1 . . . . . . . Garrison Access 7 | . . . 1 . . 1 . . . . 1 . 1 . 1 . 1 . . 1 . . Total Hacks 114 | . . 14 7 5 16 12 5 21 2 . 3 4 1 6 7 2 1 4 . 2 2 . Successful 50 | . . 7 2 3 6 4 2 12 . . 1 . 1 2 5 . 1 2 . 1 1 . Failed 64 | . . 7 5 2 10 8 3 9 2 . 2 4 . 4 2 2 . 2 . 1 1 . Catastrophic 18 | . . 1 2 . 4 1 1 2 1 . . 3 . 1 . . . 1 . 1 . . Database Lockouts . | . . . . . . . . . . . . . . . . . . . . . . . Manual 44 | . . 10 3 . 11 5 . 11 2 . 2 . . . . . . . . . . . Terminals 87 | . . 14 5 5 16 6 5 13 2 . 2 4 . 6 . 2 . 4 . 1 2 . Fabricators 6 | . . . . . . . . 6 . . . . . . . . . . . . . . Repair Stations 8 | . . . . . . 5 . . . . . . . . 3 . . . . . . . Recycling Units . | . . . . . . . . . . . . . . . . . . . . . . . Scanalyzers 5 | . . . . . . . . 2 . . . . . . 3 . . . . . . . Garrison Access 8 | . . . 2 . . 1 . . . . 1 . 1 . 1 . 1 . . 1 . . Terminal Hacks 24 | . . 4 1 3 4 1 2 4 . . . . . 2 . . . 2 . . 1 . Part Schematic 1 | . . . . . . . . 1 . . . . . . . . . . . . . . Robot Analysis 1 | . . 1 . . . . . . . . . . . . . . . . . . . . Prototype ID Bank 1 | . . . . . 1 . . . . . . . . . . . . . . . . . Open Door 3 | . . . . . . . 1 . . . . . . 1 . . . 1 . . . . Level Access Points 1 | . . 1 . . . . . . . . . . . . . . . . . . . . Branch Access Points 2 | . . 1 . . . 1 . . . . . . . . . . . . . . . . Emergency Access Points 3 | . . . . 1 1 . 1 . . . . . . . . . . . . . . . Alert Level 1 | . . . . . 1 . . . . . . . . . . . . . . . . . Unreport Threat 2 | . . . 1 . . . . 1 . . . . . . . . . . . . . . Locate Traps 2 | . . . . . . . . 2 . . . . . . . . . . . . . . Zone Layout 2 | . . 1 . . 1 . . . . . . . . . . . . . . . . . Garrison Registry 1 | . . . . 1 . . . . . . . . . . . . . . . . . . Patrol Navigation 2 | . . . . . . . . . . . . . . 1 . . . 1 . . . . Security Stations 2 | . . . . 1 . . . . . . . . . . . . . . . . 1 . Fabricator Hacks 3 | . . . . . . . . 3 . . . . . . . . . . . . . . Network Status 1 | . . . . . . . . 1 . . . . . . . . . . . . . . Load Schematic 1 | . . . . . . . . 1 . . . . . . . . . . . . . . Build 1 | . . . . . . . . 1 . . . . . . . . . . . . . . Repair Station Hacks 3 | . . . . . . 1 . . . . . . . . 2 . . . . . . . Scan Component 2 | . . . . . . 1 . . . . . . . . 1 . . . . . . . Repair 1 | . . . . . . . . . . . . . . . 1 . . . . . . . Recycling Unit Hacks . | . . . . . . . . . . . . . . . . . . . . . . . Scanalyzer 4 | . . . . . . . . 2 . . . . . . 2 . . . . . . . Insert Component 2 | . . . . . . . . 1 . . . . . . 1 . . . . . . . Analyze 2 | . . . . . . . . 1 . . . . . . 1 . . . . . . . Garrison Access Hacks 7 | . . . 1 . . 1 . . . . 1 . 1 . 1 . 1 . . 1 . . Unlock Access 7 | . . . 1 . . 1 . . . . 1 . 1 . 1 . 1 . . 1 . . Unauthorized Hacks 9 | . . 3 . . 2 1 . 3 . . . . . . . . . . . . . . Terminals 7 | . . 3 . . 2 1 . 1 . . . . . . . . . . . . . . Track 2 | . . 1 . . 1 . . . . . . . . . . . . . . . . . Assimilate 1 | . . 1 . . . . . . . . . . . . . . . . . . . . Botnet 4 | . . 1 . . 1 1 . 1 . . . . . . . . . . . . . . Fabricators 2 | . . . . . . . . 2 . . . . . . . . . . . . . . Report 1 | . . . . . . . . 1 . . . . . . . . . . . . . . Fabnet 1 | . . . . . . . . 1 . . . . . . . . . . . . . . Repair Stations . | . . . . . . . . . . . . . . . . . . . . . . . Recycling Units . | . . . . . . . . . . . . . . . . . . . . . . . Scanalyzers . | . . . . . . . . . . . . . . . . . . . . . . . Garrison Access . | . . . . . . . . . . . . . . . . . . . . . . . Data Cores Recovered . | . . . . . . . . . . . . . . . . . . . . . . . Used . | . . . . . . . . . . . . . . . . . . . . . . . Hacking Detections 41 | . . 3 2 2 5 3 2 7 1 . 2 2 1 2 3 1 1 2 . 2 . . Full Trace Events 8 | . . . 1 1 . . 2 1 . . . 1 . . 1 . . 1 . . . . Feedback Events 1 | . . . . 1 . . . . . . . . . . . . . . . . . . Corruption 1 | . . . . 1 . . . . . . . . . . . . . . . . . . Feedback Blocked . | . . . . . . . . . . . . . . . . . . . . . . . Robot Schematics Acquired . | . . . . . . . . . . . . . . . . . . . . . . . Robots Built . | . . . . . . . . . . . . . . . . . . . . . . . Authchips . | . . . . . . . . . . . . . . . . . . . . . . . Time . | . . . . . . . . . . . . . . . . . . . . . . . Total Robot Build Rating . | . . . . . . . . . . . . . . . . . . . . . . . Part Schematics Acquired 3 | . . . . . . . . 2 . . . . . . 1 . . . . . . . Parts Built 2 | . . . . . . . . 2 . . . . . . . . . . . . . . Authchips . | . . . . . . . . . . . . . . . . . . . . . . . Time 84 | . . . . . . . . 84 . . . . . . . . . . . . . . Total Part Build Rating 8 | . . . . . . . . 8 . . . . . . . . . . . . . . Parts Repaired 1 | . . . . . . . . . . . . . . . 1 . . . . . . . Time 74 | . . . . . . . . . . . . . . . 74 . . . . . . . Parts Recycled . | . . . . . . . . . . . . . . . . . . . . . . . Recycled Matter . | . . . . . . . . . . . . . . . . . . . . . . . Retrieved Matter . | . . . . . . . . . . . . . . . . . . . . . . . Retrieved Components . | . . . . . . . . . . . . . . . . . . . . . . . Parts Scanalyzed 2 | . . . . . . . . 1 . . . . . . 1 . . . . . . . Part Schematics Acquired 2 | . . . . . . . . 1 . . . . . . 1 . . . . . . . Parts Damaged . | . . . . . . . . . . . . . . . . . . . . . . . Bothacking | -11 -10 -9 -8 -8 -8 -7 -7 -6 -5 -5 -5 -5 -4 -4 -4 -4 -3 -3 -2 -1 -1 -1 ------------ Run | Jun Mat Mat Mat Gar Mat Fac Gar Fac Fac Was Fac Gar Fac Gar Fac Gar Res Gar Res Acc Gar Acc Used RIF Installer 8 | . . . . 1 . . 2 . . . . 1 . 1 . 1 . 1 . . 1 . Coupler Efficiency 1 | . . . . . . . . . . . . 1 . . . . . . . . . . Threat Obfuscator 1 | . . . . . . . 1 . . . . . . . . . . . . . . . Zone Cloak 1 | . . . . . . . . . . . . . . . . 1 . . . . . . Alert ID Control 1 | . . . . . . . . . . . . . . . . . . . . . 1 . Structural Interface 1 | . . . . . . . 1 . . . . . . . . . . . . . . . Program Shield 1 | . . . . . . . . . . . . . . 1 . . . . . . . . Autooverride 1 | . . . . . . . . . . . . . . . . . . 1 . . . . Robots Hacked 95 | . . . . . . . . 9 . . 1 7 . 21 1 12 . 12 . 3 21 8 Non-combat 3 | . . . . . . . . . . . . . . . . 1 . 1 . . . 1 Combat 92 | . . . . . . . . 9 . . 1 7 . 21 1 11 . 11 . 3 21 7 Autooverrided 7 | . . . . . . . . . . . . . . . . . . . . 1 5 1 Robot Hacks Applied 88 | . . . . . . . . 11 . . 1 6 . 19 1 12 . 12 . 2 17 7 parse_system 1 | . . . . . . . . . . . . . . . . 1 . . . . . . map_route 1 | . . . . . . . . . . . . . . . . . . . . . . 1 broadcast_data 1 | . . . . . . . . . . . . . . . 1 . . . . . . . disrupt_area 3 | . . . . . . . . 2 . . . . . . . . . 1 . . . . spike_heat 3 | . . . . . . . . 1 . . . . . 2 . . . . . . . . amplify_resonance 10 | . . . . . . . . 3 . . . . . . . 2 . 2 . . 3 . disable_weapons 6 | . . . . . . . . 1 . . . 1 . . . 2 . 1 . 1 . . go_dormant 1 | . . . . . . . . . . . . . . . . . . . . . 1 . overwrite_iff 10 | . . . . . . . . 2 . . . 1 . 2 . . . . . 1 4 . formatsys_low 1 | . . . . . . . . . . . . . . . . . . 1 . . . . formatsys_high 51 | . . . . . . . . 2 . . 1 4 . 15 . 7 . 7 . . 9 6 Relay Couplers Released 90 | . . . . 4 . . 21 . . . . 14 . 16 . 12 . 16 . . 7 . Machine Destruction 90 | . . . . 4 . . 21 . . . . 14 . 16 . 12 . 16 . . 7 . Attached 36 | . . . . . . . 1 3 . . 1 4 . 7 1 5 . 4 . 1 5 4 Fabnet Peak Effective % 3 | . . . . . . . . . 3 3 3 3 1 1 1 1 . . . . . . Autooverrided 3 | . . . . . . . . . . . . 1 . 2 . . . . . . . . Robots Rewired 25 | . . . . . . . . . . . . 5 . 7 . 8 . 3 . . 2 . Allies Hacked 3 | . . . . . . . . . . . 1 . . 1 . . . . . 1 . . Hacks Repelled . | . . . . . . . . . . . . . . . . . . . . . . . Allies | -11 -10 -9 -8 -8 -8 -7 -7 -6 -5 -5 -5 -5 -4 -4 -4 -4 -3 -3 -2 -1 -1 -1 -------- Run | Jun Mat Mat Mat Gar Mat Fac Gar Fac Fac Was Fac Gar Fac Gar Fac Gar Res Gar Res Acc Gar Acc Total Allies 120 | . . . . . . . 3 4 . 19 1 11 . 26 . 15 . 13 . 2 19 7 Largest Group 19 | . . . . . . . 2 2 . 19 19 17 17 12 12 14 14 12 7 6 7 3 Highest-Rated Group 735 | . . . . . . . 70 82 . 684 675 727 727 566 566 735 735 621 301 263 425 186 Highest-Rated Ally 119 | . . . . . . . 62 47 . 50 50 119 119 119 89 116 68 68 64 64 89 89 Total Orders 8 | . . . . . . . . . . . . . . . . 3 . 3 . . 2 . STAY 4 | . . . . . . . . . . . . . . . . 1 . 2 . . 1 . FOLLOW 4 | . . . . . . . . . . . . . . . . 2 . 1 . . 1 . Ally Attacks 1042 | . . . . . . . 22 17 . 129 65 144 68 156 76 104 17 104 5 24 57 54 Total Damage 32704 | . . . . . . . 562 604 . 3594 961 3675 2278 5353 2317 3601 924 5064 72 380 1370 1949 Kills 154 | . . . . . . . 5 3 . 6 5 22 10 28 13 16 5 28 . 1 5 7 Allies Corrupted 4 | . . . . . . . . . . . 1 1 . . . . . . . . . 2 Allies Melted . | . . . . . . . . . . . . . . . . . . . . . . . Intel | -11 -10 -9 -8 -8 -8 -7 -7 -6 -5 -5 -5 -5 -4 -4 -4 -4 -3 -3 -2 -1 -1 -1 ------- Run | Jun Mat Mat Mat Gar Mat Fac Gar Fac Fac Was Fac Gar Fac Gar Fac Gar Res Gar Res Acc Gar Acc Robot Analysis Total 1 | . . 1 . . . . . . . . . . . . . . . . . . . . Derelict Logs Recovered . | . . . . . . . . . . . . . . . . . . . . . . . Drone Launches . | . . . . . . . . . . . . . . . . . . . . . . . Drone Recoveries . | . . . . . . . . . . . . . . . . . . . . . . . Exploration | -11 -10 -9 -8 -8 -8 -7 -7 -6 -5 -5 -5 -5 -4 -4 -4 -4 -3 -3 -2 -1 -1 -1 ------------- Run | Jun Mat Mat Mat Gar Mat Fac Gar Fac Fac Was Fac Gar Fac Gar Fac Gar Res Gar Res Acc Gar Acc Turns Passed 22391 | . 686 519 445 300 643 2300 2128 4317 130 217 334 1209 77 1243 596 1401 49 1190 28 319 1241 3019 Spaces Moved 12492 | 1 321 300 260 202 359 1317 1007 2035 95 162 229 800 55 829 377 871 28 762 19 207 585 1671 Core 3 | . 2 . . . . . . 1 . . . . . . . . . . . . . . Treads 27 | . . . . . . . 27 . . . . . . . . . . . . . . . Legs 9726 | 1 319 255 . . 213 805 613 946 95 162 229 800 55 829 377 871 28 762 19 207 585 1555 Wheels 2082 | . . 45 260 202 146 512 367 550 . . . . . . . . . . . . . . Hover 640 | . . . . . . . . 524 . . . . . . . . . . . . . 116 Flight 14 | . . . . . . . . 14 . . . . . . . . . . . . . . Fastest Speed 90 | 120 120 105 90 90 105 105 92 102 120 120 120 120 120 116 116 116 116 116 120 120 116 105 Average Speed 127 | 120 120 128 97 101 118 118 144 154 120 120 120 120 120 116 116 116 116 119 120 132 121 128 Slowest Speed 1550 | 120 200 190 105 105 190 192 360 1550 120 120 190 190 120 120 116 116 116 120 120 190 190 296 Overloaded Moves . | . . . . . . . . . . . . . . . . . . . . . . . Propulsion Burnouts . | . . . . . . . . . . . . . . . . . . . . . . . Robots Hopped 2 | . . . . . . . . . . . 2 . . . . . . . . . . . Cave-ins Triggered . | . . . . . . . . . . . . . . . . . . . . . . . Exploration Rate (%) 40 | 2 66 29 18 38 42 28 97 48 3 86 7 92 2 86 9 93 1 91 1 6 55 36 Regions Visited 22 Branch Regions . Pre-discovered Areas . | . . . . . . . . . . . . . . . . . . . . . . . Known Exits Taken 10 | . . 1 1 . . 1 . 1 . . 1 . 1 . 1 . 1 . 1 1 . . Unknown Exits Taken 3 | 1 1 . . . 1 . . . . . . . . . . . . . . . . . Scrap Searched . | . . . . . . . . . . . . . . . . . . . . . . . Spaces Dug 15 | . . . . . . 2 . 2 . . . . . 2 . . . 1 . . . 8 Terrain Destroyed 136 | . . . . . . 2 83 19 . . . . . 2 . . . 6 . . . 24 Melee 15 | . . . . . . 2 . 2 . . . . . 2 . . . 1 . . . 8 Projectile 29 | . . . . . . . . 17 . . . . . . . . . . . . . 12 AOE 91 | . . . . . . . 83 . . . . . . . . . . 5 . . . 3 Terrain Rammed . | . . . . . . . . . . . . . . . . . . . . . . . Walls Destroyed . | . . . . . . . . . . . . . . . . . . . . . . . Machines Disabled . | . . . . . . . . . . . . . . . . . . . . . . . Actions | -11 -10 -9 -8 -8 -8 -7 -7 -6 -5 -5 -5 -5 -4 -4 -4 -4 -3 -3 -2 -1 -1 -1 --------- Run | Jun Mat Mat Mat Gar Mat Fac Gar Fac Fac Was Fac Gar Fac Gar Fac Gar Res Gar Res Acc Gar Acc Total 17525 | . 542 387 360 256 477 1994 1497 2895 109 184 284 996 66 1038 529 1172 42 1007 24 243 1028 2395 Wait 2725 | . 140 21 18 1 23 533 270 493 . 14 45 53 2 87 135 148 4 102 4 8 249 375 Move 12472 | . 320 299 259 201 358 1316 1006 2034 95 161 225 799 55 828 377 870 28 761 18 207 584 1671 Hop 2 | . . . . . . . . . . . 2 . . . . . . . . . . . Pick Up 255 | . 3 10 8 6 9 33 30 46 2 2 1 15 3 16 . 15 1 10 . 5 13 27 Fast Attach 153 | . 17 5 4 2 7 14 12 26 2 2 3 2 . 3 4 3 . 7 . 2 7 31 Attach 144 | . 1 4 3 4 8 6 13 34 1 1 . 1 1 4 . 3 2 3 2 2 12 39 Detach 61 | . 3 4 3 . 3 4 7 11 . . . 1 . 1 . 1 . 2 . 1 . 20 Swap 255 | . 9 9 9 2 7 10 13 40 2 1 4 20 1 14 4 20 2 27 . 2 25 34 Drop 255 | . 8 12 12 4 8 35 34 37 5 3 2 23 2 7 3 11 . 18 . 2 8 21 Fire 408 | . 37 23 34 . . . 6 90 . . 1 16 2 39 4 35 . 32 . 2 37 50 Melee 639 | . . . 9 20 49 43 96 76 2 . . 26 . 21 1 32 3 39 . 12 84 126 Ram 1 | . . . 1 . . . . . . . . . . . . . . . . . . . Kick 11 | . 4 . . . 5 . . . . . . . . 1 . . . . . . . 1 Crush . | . . . . . . . . . . . . . . . . . . . . . . . Escape Stasis 57 | . . . . 16 . . 10 8 . . . 4 . 2 . 3 . 5 . . 9 . Rewire 87 | . . . . . . . . . . . 1 36 . 15 1 31 2 1 . . . . Trap . | . . . . . . . . . . . . . . . . . . . . . . . Miscellaneous . | . . . . . . . . . . . . . . . . . . . . . . . Route ------- -11/Junkyard -10/Materials (discovered 2 exits: *Mat / [*Min]) -9/Materials (discovered 5 exits: *Mat x3 / Min / *Sto) -8/Materials -8/Garrison (discovered 3 exits: *Mat x3) -8/Materials -7/Factory (discovered 3 exits: Low x2 / Gar) -7/Garrison (discovered 3 exits: *Fac x3) -6/Factory (discovered 2 exits: *Fac / *Low) -5/Factory -5/Waste -5/Factory -5/Garrison (discovered 3 exits: *Fac x3) -4/Factory -4/Garrison (discovered 3 exits: *Fac x3) -4/Factory -4/Garrison (discovered 3 exits: *Res x3) -3/Research -3/Garrison (discovered 4 exits: *Res x3 / *Res) -2/Research -1/Access -1/Garrison (discovered 2 exits: *Acc x2) -1/Access History --------- Turn | Location | Event 1 | -11/Junkyard | Discovered new exit (range 0) 1 | -11/Junkyard | Entered Materials 329 | -10/Materials | Build established: Mutant 587 | -10/Materials | Discovered new exit (range 10) 671 | -10/Materials | Discovered new exit (range 13) 687 | -10/Materials | Entered another Materials area 687 | -9/Materials | Evolved 2 slots: Utility x1, Weapon x1 694 | -9/Materials | Identified exit to Mines 694 | -9/Materials | Identified exit to Storage 755 | -9/Materials | Identified exit to Materials 913 | -9/Materials | Lost 3 parts (1n2w) 926 | -9/Materials | Destroyed 9 combat bots 994 | -9/Materials | Build established: Tank 1206 | -9/Materials | Entered another Materials area 1206 | -8/Materials | Evolved 2 slots: Propulsion x1, Utility x1 1610 | -8/Materials | Identified exit to Garrison 1651 | -8/Materials | Entered Garrison 1660 | -8/Garrison | Installed Relay Interface Framework 1686 | -8/Garrison | Triggered checkpoint 1724 | -8/Garrison | Lost 3 parts (3n) 1792 | -8/Garrison | Lost 3 parts (1n1u1w) 1799 | -8/Garrison | Garrison Relay disabled 1856 | -8/Garrison | Learned Materials security intel 1935 | -8/Garrison | Discovered new exit (range 51) 1935 | -8/Garrison | Discovered new exit (range 12) 1935 | -8/Garrison | Discovered new exit (range 66) 1950 | -8/Garrison | Identified exit to Materials 1951 | -8/Garrison | Entered Materials 2020 | -8/Materials | Build established: Scavenger-Gladiator 2256 | -8/Materials | Lost 3 parts (1n1u1w) 2318 | -8/Materials | Core integrity fell below 50% 2508 | -8/Materials | Lost 5 parts (4n1w) 2576 | -8/Materials | Discovered new exit (range 16) 2594 | -8/Materials | Entered Factory 2594 | -7/Factory | Evolved 2 slots: Propulsion x2 2745 | -7/Factory | Build established: Scavenger-Mutant 3258 | -7/Factory | Build established: Mutant 3568 | -7/Factory | Cargo convoy interrupted 4512 | -7/Factory | Identified exit to Lower Caves 4882 | -7/Factory | Identified exit to Garrison 4894 | -7/Factory | Entered Garrison 4900 | -7/Garrison | Triggered checkpoint 4920 | -7/Garrison | Garrison Relay disabled 4978 | -7/Garrison | Triggered checkpoint 5265 | -7/Garrison | Phase Generator disabled 5674 | -7/Garrison | Lost 4 parts (4n) 5761 | -7/Garrison | Discovered new exit (range 8) 5798 | -7/Garrison | Triggered checkpoint 5893 | -7/Garrison | Garrison Relay disabled 6030 | -7/Garrison | Triggered checkpoint 6144 | -7/Garrison | Build established: Scavenger-Mutant 6147 | -7/Garrison | Expanded RIF knowledge: Structural Interface 6155 | -7/Garrison | Discovered new exit (range 14) 6204 | -7/Garrison | Triggered checkpoint 6224 | -7/Garrison | Core integrity fell below 50% 6354 | -7/Garrison | Triggered checkpoint 6370 | -7/Garrison | Garrison Relay disabled 6422 | -7/Garrison | Triggered checkpoint 6476 | -7/Garrison | Rescued a captive Derelict 6478 | -7/Garrison | Rescued a captive Derelict 6536 | -7/Garrison | Discovered new exit (range 10) 6628 | -7/Garrison | Lost 5 parts (4n1w) 6629 | -7/Garrison | Expanded RIF knowledge: Threat Obfuscation 6932 | -7/Garrison | Garrison Relay disabled 6944 | -7/Garrison | Garrison Relay disabled 7022 | -7/Garrison | Entered Factory 7022 | -6/Factory | Evolved 2 slots: Utility x2 7372 | -6/Factory | First assault squad dispatched 7408 | -6/Factory | Build established: Bothacker-Mutant 7514 | -6/Factory | Lost 5 parts (4n1w) 8231 | -6/Factory | Lost 6 parts (2n2u2w) 8692 | -6/Factory | Spotted B-75 Beast 8745 | -6/Factory | Lost 8 parts (1p4n1u2w) 9471 | -6/Factory | Build established: Bothacker-Skirmisher 10058 | -6/Factory | Discovered new exit (range 11) 10077 | -6/Factory | Identified exit to Lower Caves 10623 | -6/Factory | Fabricated Chainsword (x2) 11006 | -6/Factory | Core integrity fell below 50% 11158 | -6/Factory | Garrison activated, responded to threat 11312 | -6/Factory | Discovered new exit (range 14) 11330 | -6/Factory | Identified exit to Factory 11339 | -6/Factory | Entered another Factory area 11339 | -5/Factory | Evolved 2 slots: Utility x2 11469 | -5/Factory | Sucked down chute 11469 | -5/Factory | Entered Waste 11474 | -5/Waste | Spotted C-40 Crusher 11486 | -5/Waste | Spotted C-40 Crusher 11506 | -5/Waste | Found Enh. Force Lance 11519 | -5/Waste | Warlord forces began an assault 11532 | -5/Waste | Allies destroyed C-40 Crusher 11535 | -5/Waste | Allies destroyed C-40 Crusher 11540 | -5/Waste | Spotted C-40 Crusher 11543 | -5/Waste | Allies destroyed C-40 Crusher 11547 | -5/Waste | Spotted C-40 Crusher 11551 | -5/Waste | Allies destroyed C-40 Crusher 11565 | -5/Waste | Spotted C-40 Crusher 11568 | -5/Waste | Allies destroyed C-40 Crusher 11571 | -5/Waste | Spotted C-40 Crusher 11573 | -5/Waste | Build established: Bothacker-Assassin 11576 | -5/Waste | Allies destroyed C-40 Crusher 11639 | -5/Waste | Discovered new exit (range 13) 11672 | -5/Waste | Identified exit to Factory 11686 | -5/Waste | Entered Factory 11686 | -5/Factory | Accompanied by 18 allies 12004 | -5/Factory | Identified exit to Garrison 12020 | -5/Factory | Entered Garrison 12020 | -5/Garrison | Accompanied by 16 allies 12036 | -5/Garrison | Triggered checkpoint 12086 | -5/Garrison | Garrison Relay disabled 12302 | -5/Garrison | Triggered checkpoint 12314 | -5/Garrison | Triggered checkpoint 12338 | -5/Garrison | Build established: Bothacker-Mutant 12383 | -5/Garrison | Discovered new exit (range 15) 12405 | -5/Garrison | Expanded RIF knowledge: Coupler Efficiency 12438 | -5/Garrison | Triggered checkpoint 12483 | -5/Garrison | Garrison Relay disabled 12552 | -5/Garrison | Triggered checkpoint 12631 | -5/Garrison | Garrison Relay disabled 12640 | -5/Garrison | Triggered checkpoint 12690 | -5/Garrison | Rewired Executioner 12694 | -5/Garrison | Rewired Executioner 12715 | -5/Garrison | Discovered new exit (range 2) 12716 | -5/Garrison | Identified exit to Factory 12754 | -5/Garrison | Spotted B-75 Beast 12776 | -5/Garrison | Destroyed B-75 Beast 12946 | -5/Garrison | Triggered checkpoint 12983 | -5/Garrison | Discovered exit to Factory (range 10) 12992 | -5/Garrison | Triggered checkpoint 13015 | -5/Garrison | Garrison Relay disabled 13229 | -5/Garrison | Entered Factory 13229 | -4/Factory | Accompanied by 17 allies 13229 | -4/Factory | Evolved 2 slots: Utility x2 13262 | -4/Factory | Garrison activated, responded to threat 13304 | -4/Factory | Identified exit to Garrison 13306 | -4/Factory | Entered Garrison 13306 | -4/Garrison | Accompanied by 8 allies 13356 | -4/Garrison | Garrison Relay disabled 13362 | -4/Garrison | Triggered checkpoint 13448 | -4/Garrison | Build established: Botlord-Mutant 13522 | -4/Garrison | Triggered checkpoint 13525 | -4/Garrison | Triggered checkpoint 13604 | -4/Garrison | Garrison Relay disabled 13635 | -4/Garrison | Discovered new exit (range 8) 13690 | -4/Garrison | Triggered checkpoint 13762 | -4/Garrison | Discovered new exit (range 10) 13803 | -4/Garrison | Found Relay Coupler [Proto] 13810 | -4/Garrison | Found Relay Coupler [Proto] 13843 | -4/Garrison | Spotted B-75 Beast 13843 | -4/Garrison | Spotted B-75 Beast 13874 | -4/Garrison | Garrison Relay disabled 13892 | -4/Garrison | Triggered checkpoint 13919 | -4/Garrison | Expanded RIF knowledge: Program Shield 14082 | -4/Garrison | Garrison Relay disabled 14114 | -4/Garrison | Triggered checkpoint 14124 | -4/Garrison | Triggered checkpoint 14156 | -4/Garrison | Spotted Striker 14156 | -4/Garrison | Spotted Striker 14159 | -4/Garrison | Assimilated Striker with formatsys_high 14180 | -4/Garrison | Destroyed Striker 14224 | -4/Garrison | Triggered checkpoint 14334 | -4/Garrison | Triggered checkpoint 14359 | -4/Garrison | Discovered new exit (range 10) 14378 | -4/Garrison | Identified exit to Factory 14430 | -4/Garrison | Triggered checkpoint 14501 | -4/Garrison | Found Relay Coupler [Proto] 14505 | -4/Garrison | Found Relay Coupler [Proto] 14549 | -4/Garrison | Entered Factory 14549 | -4/Factory | Accompanied by 12 allies 14950 | -4/Factory | Repaired Centrium Leg 15094 | -4/Factory | First assault squad dispatched 15131 | -4/Factory | Garrison activated, responded to threat 15140 | -4/Factory | Allies destroyed Striker 15141 | -4/Factory | Identified exit to Garrison 15145 | -4/Factory | Entered Garrison 15145 | -4/Garrison | Accompanied by 9 allies 15188 | -4/Garrison | Triggered checkpoint 15213 | -4/Garrison | Garrison Relay disabled 15306 | -4/Garrison | Spotted B-86 Titan 15315 | -4/Garrison | Triggered checkpoint 15317 | -4/Garrison | Assimilated Titan 7a with formatsys_high 15450 | -4/Garrison | Triggered checkpoint 15472 | -4/Garrison | Triggered checkpoint 15488 | -4/Garrison | Garrison Relay disabled 15536 | -4/Garrison | Discovered new exit (range 14) 15542 | -4/Garrison | Rewired B-75 Beast 15548 | -4/Garrison | Spotted B-75 Beast 15567 | -4/Garrison | Allies destroyed B-75 Beast 15626 | -4/Garrison | Triggered checkpoint 15837 | -4/Garrison | Expanded RIF knowledge: Zone Cloak 15848 | -4/Garrison | Triggered checkpoint 15863 | -4/Garrison | Garrison Relay disabled 15913 | -4/Garrison | Discovered new exit (range 13) 15928 | -4/Garrison | Identified exit to Research 16203 | -4/Garrison | Discovered exit to Research (range 10) 16546 | -4/Garrison | Entered Research 16546 | -3/Research | Accompanied by 14 allies 16546 | -3/Research | Evolved 2 slots: Utility x2 16567 | -3/Research | Garrison activated, responded to threat 16591 | -3/Research | Identified exit to Garrison 16595 | -3/Research | Entered Garrison 16595 | -3/Garrison | Accompanied by 11 allies 16634 | -3/Garrison | Triggered checkpoint 16644 | -3/Garrison | Garrison Relay disabled 16684 | -3/Garrison | Spotted B-86 Titan 16688 | -3/Garrison | Triggered checkpoint 16696 | -3/Garrison | Allies destroyed B-86 Titan 16724 | -3/Garrison | Triggered checkpoint 16740 | -3/Garrison | Triggered checkpoint 16858 | -3/Garrison | Triggered checkpoint 16990 | -3/Garrison | Garrison Relay disabled 17008 | -3/Garrison | Discovered new exit (range 11) 17049 | -3/Garrison | Identified exit to Research 17212 | -3/Garrison | Triggered checkpoint 17244 | -3/Garrison | Rescued a captive Derelict 17245 | -3/Garrison | Rescued a captive Derelict 17267 | -3/Garrison | Discovered exit to Research (range 10) 17318 | -3/Garrison | Garrison Relay disabled 17468 | -3/Garrison | P-80 Master assimilated allied 5Q-TA9(g) 17510 | -3/Garrison | Lost 3 parts (2u1w) 17547 | -3/Garrison | QS Assembler disabled 17583 | -3/Garrison | Discovered exit to Research (range 5) 17602 | -3/Garrison | Triggered checkpoint 17624 | -3/Garrison | Discovered new exit (range 3) 17632 | -3/Garrison | Identified exit to Research 17690 | -3/Garrison | Garrison Relay disabled 17716 | -3/Garrison | Expanded RIF knowledge: Autooverride 17785 | -3/Garrison | Entered Research 17785 | -2/Research | Accompanied by 7 allies 17785 | -2/Research | Evolved 2 slots: Utility x2 17799 | -2/Research | Discovered new exit (range 6) 17805 | -2/Research | Identified exit to Access 17813 | -2/Research | Entered Access 17813 | -1/Access | Accompanied by 6 allies 17813 | -1/Access | Evolved 2 slots: Utility x2 17971 | -1/Access | Lost 3 parts (1n2u) 18132 | -1/Access | Identified exit to Garrison 18132 | -1/Access | Entered Garrison 18268 | -1/Garrison | Triggered checkpoint 18277 | -1/Garrison | Garrison Relay disabled 18470 | -1/Garrison | Learned Access security intel 18501 | -1/Garrison | Spotted B-99 Colossus 18519 | -1/Garrison | Triggered checkpoint 18520 | -1/Garrison | Triggered checkpoint 18524 | -1/Garrison | Triggered checkpoint 18575 | -1/Garrison | Lost 3 parts (3u) 18698 | -1/Garrison | Lost 3 parts (1p2n) 18700 | -1/Garrison | Destroyed B-99 Colossus 18730 | -1/Garrison | Triggered checkpoint 18966 | -1/Garrison | Triggered checkpoint 19043 | -1/Garrison | Garrison Relay disabled 19048 | -1/Garrison | Lost 3 parts (2u1w) 19147 | -1/Garrison | Discovered new exit (range 13) 19162 | -1/Garrison | Identified exit to Access 19280 | -1/Garrison | Discovered exit to Access (range 10) 19307 | -1/Garrison | Expanded RIF knowledge: Alert ID Control 19343 | -1/Garrison | Spotted B-99 Colossus 19373 | -1/Garrison | Entered Access 19393 | -1/Access | Lost 4 parts (1p2n1u) 19623 | -1/Access | First assault squad dispatched 20858 | -1/Access | Lost 5 parts (1n2u2w) 20991 | -1/Access | Found Antimissile System 21399 | -1/Access | Lost 3 parts (1n1u1w) 21603 | -1/Access | Lost 16 parts (5n8u3w) 21744 | -1/Access | System corruption reached 10% 22117 | -1/Access | Lost 4 parts (1n2u1w) 22255 | -1/Access | Lost 4 parts (1p1n2w) 22377 | -1/Access | System corruption reached 30% 22383 | -1/Access | Core integrity fell below 50% 22392 | -1/Access | Self-destructed Last Messages --------------- 22379_ Slug penetrates U-05 Engineer. 22379_ U-05 Engineer destroyed. 22379_ Gamma Rifle destroyed. 22379_ R-10 Processor collects Wheel. 22382_ Penetrated by Slug. 22382_ P-80 Master resets P-80 Master, system corruption cleaned. 22382_ Slug penetrates P-80 Master. 22382_ Destroyed Gamma Rifle. 22383_ Quantum Reactor destroyed. 22383_ Imp. Melee Analysis Suite destroyed. 22386_ Railgun destroyed. 22386_ Slug penetrates Wall. 22387_ Penetrated by Slug. 22387_ Lgt. Quantum Reactor destroyed. 22387_ Slug penetrates Wall. 22387_ Imp. Antigrav System destroyed. 22389_ Slug penetrates Wall. 22391_ Destroyed Adv. Heat Sink. 22392_ Slug penetrates H-88 Terminator. [Achievement: 40k Club] Map ----- +----------------------------------------------------+ | #????????????######## #########??? | | #????????????# ?? | | #????????????# """"" ?? | | #????????????# """"" ?? | | #????????????# """"" ^ ??? | | #######????????????# ### """"" ^ #???? | | ???????????????????# ??# """"" ##??? | | ???????????????????# ???# ""??? | | ???????????????????# ???# ""#?? | | ???????????????????+ ????# ""#?? | | ???????????????????# ?????# """"" T#?? | | ???????????????????# ?????# """"" ""#?? | | ???????????????????#??????# """"" ""#?? | | ??????????????????????????# """"" ""#?? | | ??????????????????????????# """"" ### | | ######????????????????????# | | !!! #????????????????????# | | !! #???###?############## | | !! ##### ### # """"" | | =# # # """"" ######+### ? | | # # # """"" # ! #?? | | # # # """"" # #?? | | ##+### "" + " # """"" # "" #?? | | ! # """ # """" + #""" #?? | | = # "T # """"" pp#hh #"T ### | | % + "" # """"" !@p% #""" ] ## | | # "" # """" ;############ "" ## | | # # " u # #????????## ## | | ## ### + ###?????????# ## | | ?# #?# # #???????????########### | | ?# ########+##+####+############################## | | ?# | | ?#### | | ????# | | ????# "" | | ????# """ ##################### | | ????# "F ########????????????? | | ????# """ =]= # #????????????? | | ????####### "" *= # #????????????? | | ??????????# """ |= # % #????????????? | | ??????????# + #????????????? | | ??????##### #% #????????????? | | ??? # % #????????????? | | ?????###### |! ############+###????????????? | | ??????????####+###+######## ##%#??????????????? | | ??????????# * !! + #??????????????? | | ??????????# # ####??????????????? | | ??????????# """"" ## #?????????????????? | | ??????????# """"" # #?????????????????? | | ??????????# """"" ######?????????????????? | +----------------------------------------------------+ Best States ------------- Heat Dissipation 90 Energy Generation 25 Energy Capacity 350 Matter Stores 300 Matter Capacity 300 Sight Range 18 Robot Scan Range 18 Terrain Scan Range 20 Terrain Scan Density 10 ECM Strength 2 Cloak Strength 4 Armor Coverage 600 Resistance: TH 10 Resistance: EM 25 Core Shielding 30 Power Shielding 90 Propulsion Shielding 66 Utility Shielding 66 Weapon Shielding 33 Weapon Cycling 25 Melee Speed Boost 50 Phase Shifting 15 Evasion (%) 70 Melee Accuracy 34 Target Analysis 12 Recoil Reduction 1 Kinecelleration 40 Relay Coupler Types 7 Relay Coupler Value 182 Item Schematics ----------------- Chainsword | -6/Factory | Scanalyzed Hcp. Storage Unit | -6/Factory | Hacked Centrium Leg | -4/Factory | Scanalyzed Robot Schematics ------------------ None Fabricated ------------ Chainsword | x2 | -6/Factory Alien Tech Used ----------------- None Achievements -------------- 40k Club Beloved Pwned Challenges ------------ None Game ------ Seed RagnarokArcSplitter Manual? 0 Play Time 04:25:30 Cumulative 135.8 hours Start 2023.10.21 @ 23:06:55 End 2023.10.22 @ 14:29:05 Sessions 5 Manual Loads 0 Difficulty Rogue Special Mode None Game No. 73 Rogue 73 Adventurer 0 Explorer 0 Win Type - Total 0 Types 0/0/0/0/0/0/0/0/0 Lore% 30 Gallery% 60 Achievement% 47 Wizard Run 0 Options --------- ASCII 0 Keyboard 1 Movement Numpad Keybinds 0 Fullscreen 1 Font 24/Smallcaps Map View 76x50 Tactical HUD 1 Map Filters NONE Filters NONE Steam 1 RUN: 69ca7440-0078-4571-9dbe-d8253f9b2b04